bitfinex/quotes_ETHUSD_20251010
["timestamp","ask_amount","ask_price","bid_price","bid_amount"]
[1760083683136,0.002,4326.3,4326.0,2.31158785]
[1760083683347,0.002,4326.3,4326.1,0.01431334]
[1760083683531,0.002,4326.3,4326.0,2.31158785]
[1760083683930,0.002,4326.3,4326.2,2.31149738]
[1760083684660,0.002,4326.3,4326.2,2.63709738]
[1760083685969,0.002,4326.3,4326.2,8.85249738]
[1760083686166,0.002,4326.3,4326.2,9.17809738]
[1760083686682,0.002,4326.3,4326.2,2.63709738]
[1760083686840,0.002,4326.3,4326.2,9.92291016]
[1760083688972,0.002,4326.3,4326.2,12.47651016]
[1760083689138,0.01,4327.9,4327.8,2.31064282]
[1760083689486,0.01,4327.9,4327.8,8.85064282]
[1760083689669,0.01,4327.9,4327.8,11.09624282]
[1760083689966,0.01,4327.9,4327.8,12.67753869]
[1760083690174,0.01,4328.9,4327.9,4.23058943]
[1760083690346,0.01,4328.9,4328.0,0.01428396]
[1760083690546,0.01,4328.9,4328.3,2.31035306]
[1760083690744,0.01,4328.9,4328.8,2.31010903]
[1760083690944,0.01,4328.9,4328.8,2.78641511]
[1760083691144,0.01,4328.9,4328.8,3.11201511]
[1760083691345,0.01,4328.9,4328.8,0.80190608]
[1760083691547,0.01,4328.9,4328.8,9.65501511]
[1760083691875,0.01,4328.9,4328.8,9.64073831]
[1760083692076,0.01,4328.9,4328.8,9.75593831]
[1760083695272,0.01,4328.9,4328.8,3.21293831]
[1760083695644,0.01,4328.9,4328.8,0.1152]
[1760083696049,0.01,4328.9,4328.8,3.36730903]
[1760083697674,0.01,4328.9,4328.8,3.38158583]
[1760083697874,0.01,4328.9,4328.8,3.70718583]
[1760083698381,0.01,4328.9,4328.8,3.36730903]
[1760083698556,0.01,4328.9,4328.8,4.29321827]
[1760083699681,0.01,4328.9,4327.8,1.90689587]
[1760083699908,0.01,4328.9,4327.3,2.3109098]
[1760083699909,2.31036599,4328.4,4327.3,2.3109098]
[1760083700045,2.31036599,4328.4,4327.5,2.3107595]
[1760083700378,0.45907969,4328.3,4326.9,6.04939568]
[1760083700579,2.31087097,4327.4,4327.0,5.595]
[1760083701485,0.02888437,4327.6,4327.0,5.595]
[1760083701662,2.33967833,4327.6,4327.0,5.595]
[1760083701978,0.6,4327.2,4327.0,5.595]
[1760083702350,0.6,4327.2,4327.0,7.90606097]
[1760083702546,0.6,4327.2,4327.0,5.595]
[1760083703694,0.6,4327.2,4327.1,0.33989999]
[1760083703895,0.6,4327.2,4327.0,6.38560821]
[1760083704194,0.6,4327.2,4327.0,5.595]
[1760083704567,0.6,4327.2,4327.1,2.6509166]
[1760083704773,0.6,4327.2,4327.1,0.33989999]
[1760083705094,0.6,4327.2,4327.1,2.31101661]
[1760083705672,0.6,4327.2,4327.1,2.63661661]
[1760083705877,0.6,4327.2,4327.1,3.69089039]
[1760083706800,0.6,4327.2,4327.1,3.70518988]
[1760083707164,0.6,4327.2,4327.1,3.69089039]
[1760083709203,0.6,4327.2,4327.1,6.54]
[1760083709571,0.6,4327.2,4327.0,6.54]
[1760083709969,0.6,4327.2,4326.9,0.1152]
[1760083710168,0.6,4327.2,4326.2,0.74481278]
[1760083710169,0.4741,4327.1,4326.7,0.721]
[1760083710403,0.6,4327.2,4326.7,0.721]
[1760083710814,2.91098485,4327.2,4326.7,0.721]
[1760083710996,3.38508485,4327.2,4326.7,0.721]
[1760083711404,0.6,4327.2,4326.7,0.721]
[1760083711604,0.1152,4327.3,4326.8,0.01430249]
[1760083711781,0.1152,4327.3,4326.9,0.3256]
[1760083711979,0.1152,4327.3,4327.0,0.01430032]
[1760083712701,0.1152,4327.3,4326.8,0.01430032]
[1760083712889,0.1152,4327.3,4326.7,0.721]
[1760083713090,2.3110276,4327.1,4326.7,0.721]
[1760083713427,0.1152,4327.3,4326.6,0.1152]
[1760083713428,2.78518494,4327.0,4326.6,0.1152]
[1760083713713,0.1152,4327.3,4326.7,0.3256]
[1760083713907,2.31070618,4327.7,4326.9,2.31108029]
[1760083714106,2.42590618,4327.7,4327.0,0.1152]
[1760083714308,2.42590618,4327.7,4327.0,2.42625027]
[1760083715016,0.1152,4327.7,4327.1,2.32527207]
[1760083715188,0.1152,4327.7,4327.1,0.01429748]
[1760083715511,2.31075291,4327.6,4327.1,0.01429748]
[1760083715696,2.3107496,4327.6,4327.1,0.01429748]
[1760083715895,0.1152,4327.7,4327.1,0.01429748]
[1760083716509,2.42594187,4327.7,4327.1,0.01429748]
[1760083717114,0.6,4327.3,4327.1,2.32531245]
[1760083717279,0.6,4327.3,4327.1,0.01429748]
[1760083717680,0.6,4327.3,4327.0,6.6542]
[1760083718885,0.6,4327.3,4327.1,0.33989949]
[1760083719089,0.6,4327.3,4327.1,3.35028639]
[1760083719396,0.6,4327.3,4327.1,3.02468639]
[1760083719604,0.6,4327.3,4327.1,0.71370944]
[1760083719814,0.6,4327.3,4327.2,2.6365632]
[1760083720015,0.6,4327.3,4327.2,2.7517632]
[1760083720337,0.6,4327.3,4327.2,1.5872506]
[1760083720883,0.6,4327.3,4327.2,3.8982138]
[1760083721932,0.6,4327.3,4327.2,4.2238138]
[1760083722326,0.1152,4328.2,4327.6,2.31073203]
[1760083722630,2.31048265,4328.1,4327.7,0.01428997]
[1760083722787,0.1152,4328.2,4327.7,0.01428997]
[1760083722788,2.42565755,4328.2,4327.7,0.01428997]
[1760083723389,0.5893,4328.2,4327.7,0.01428997]
[1760083723604,2.3105335,4328.1,4327.4,8.84985406]
[1760083724143,0.6,4327.8,4327.4,6.539]
[1760083724305,0.4741,4327.7,4327.4,6.539]
[1760083724488,2.78484264,4327.7,4327.4,6.539]
[1760083724691,0.4741,4327.7,4327.4,6.539]
[1760083724890,0.6,4327.8,4327.2,6.6542]
[1760083725124,2.91068538,4327.8,4327.2,6.6542]
[1760083725791,2.91064912,4327.8,4327.2,6.6542]
[1760083725990,0.6,4327.8,4327.2,6.6542]
[1760083726208,2.910688,4327.8,4327.2,6.6542]
[1760083726406,0.6,4327.8,4327.2,6.6542]
[1760083726618,0.6,4327.8,4327.7,2.31069621]
[1760083727201,0.6,4327.8,4327.7,2.63629621]
[1760083727404,0.6,4327.8,4327.7,0.3256]
[1760083727609,0.6,4327.8,4327.6,0.01429181]
[1760083727810,0.6,4327.8,4327.6,2.31070007]
[1760083728010,0.6,4327.8,4327.7,2.8816582]
[1760083728286,0.6,4327.8,4327.7,0.57096199]
[1760083728693,0.6,4327.8,4327.7,9.4206582]
[1760083729009,0.6,4327.8,4327.7,9.40636622]
[1760083730919,0.6,4327.8,4327.5,0.1152]
[1760083731117,0.6,4327.8,4327.6,8.84970049]
[1760083731319,0.6,4327.8,4327.6,8.84973861]
[1760083731636,0.6,4327.8,4327.5,6.6532]
[1760083731794,0.6,4327.8,4327.6,2.31071234]
[1760083731989,0.6,4327.8,4327.7,2.31069621]
[1760083732193,0.6,4327.8,4327.7,2.63629621]
[1760083732393,0.6,4327.8,4327.7,3.79775433]
[1760083733135,0.6,4327.8,4327.7,3.47215433]
[1760083733433,0.6,4327.8,4327.6,2.32502842]
[1760083733640,0.6,4327.8,4327.7,2.31069621]
[1760083734138,0.6,4327.8,4327.6,0.01429231]
[1760083734317,0.6,4327.8,4327.0,0.001]
[1760083734511,0.6,4327.8,4327.2,2.31091795]
[1760083734713,0.6,4327.8,4327.3,6.538]
[1760083734928,2.91065304,4327.8,4327.3,6.538]
[1760083735236,0.4331,4327.7,4327.3,6.538]
[1760083735404,0.6,4327.8,4327.3,6.538]
[1760083735611,0.6,4327.8,4327.5,2.31078747]
[1760083735824,0.6,4327.8,4327.4,0.1152]
[1760083736237,0.6,4327.8,4327.4,6.538]
[1760083736621,3.34375051,4327.8,4327.4,6.538]
[1760083736824,1.0331,4327.8,4327.4,6.538]
[1760083737339,1.0331,4327.8,4327.5,0.01429364]
[1760083738144,2.31079048,4327.6,4327.1,0.1152]
[1760083738327,0.6,4327.8,4327.0,0.001]
[1760083738328,0.46108503,4327.5,4327.0,0.001]
[1760083738648,2.31101661,4327.1,4327.0,0.001]
[1760083739153,2.74321661,4327.1,4327.0,0.001]
[1760083741714,0.14408704,4327.2,4327.0,0.001]
[1760083741715,2.45508906,4327.2,4327.0,0.001]
[1760083741916,0.14408704,4327.2,4327.0,0.001]
[1760083742262,0.1152,4327.2,4327.0,0.001]
[1760083744122,2.85837575,4327.2,4327.0,0.001]
[1760083744431,0.4322,4327.1,4327.0,0.001]
[1760083744831,0.1152,4327.2,4327.0,0.001]
[1760083745242,2.42619982,4327.2,4327.0,0.001]
[1760083745593,0.5474,4327.2,4327.0,0.001]
[1760083746557,0.1152,4327.2,4327.0,0.001]
[1760083747882,0.002,4327.9,4327.0,0.3266]
[1760083748086,0.1152,4327.6,4327.1,0.01429697]
[1760083748999,0.1152,4327.6,4327.0,0.01529748]
[1760083749211,0.14408437,4327.6,4327.0,0.001]
[1760083749409,2.31095093,4327.3,4327.0,0.001]
[1760083749771,2.74315093,4327.3,4327.0,0.001]
[1760083749971,0.4322,4327.3,4327.0,0.001]
[1760083750213,0.1152,4327.6,4327.0,0.001]
[1760083750214,0.57628437,4327.6,4327.0,0.001]
[1760083750711,2.310803,4327.5,4327.0,0.001]
[1760083751172,2.743003,4327.5,4327.0,0.001]
[1760083751470,2.31086494,4327.4,4327.0,0.001]
[1760083751675,2.74306494,4327.4,4327.0,0.001]
[1760083752082,0.4322,4327.4,4327.0,0.001]
[1760083752288,2.42599983,4327.6,4327.0,0.001]
[1760083752577,0.4322,4327.4,4327.0,0.001]
[1760083752979,0.4322,4327.3,4327.0,0.001]
[1760083753177,2.31101661,4327.1,4327.0,0.001]
[1760083753771,2.74321661,4327.1,4327.0,0.001]
[1760083754274,5.29681661,4327.1,4327.0,0.001]
[1760083756300,2.31101661,4327.1,4327.0,0.001]
[1760083756622,2.77210431,4327.1,4327.0,0.001]
[1760083758686,2.74321661,4327.1,4327.0,0.001]
[1760083758896,0.4322,4327.1,4327.0,0.001]
[1760083759099,2.74321661,4327.1,4327.0,0.001]
[1760083763001,1.92,4327.4,4327.0,0.001]
[1760083763201,6.54,4327.5,4327.0,0.001]
[1760083763499,0.1152,4327.2,4327.0,0.001]
[1760083764165,0.1152,4327.5,4327.0,0.23222158]
[1760083764317,0.1152,4327.5,4327.1,0.01429848]
[1760083764846,0.6,4327.8,4327.2,0.3256]
[1760083765357,0.6,4327.8,4327.0,0.001]
[1760083765519,2.31073751,4327.7,4327.0,0.001]
[1760083765719,0.02888437,4327.6,4327.0,0.001]
[1760083765953,2.31101661,4327.1,4327.0,0.001]
[1760083766453,2.3522,4327.1,4327.0,0.001]
[1760083766770,4.23101661,4327.1,4327.0,0.001]
[1760083766973,2.31101661,4327.1,4327.0,0.001]
[1760083767271,1.94888437,4327.6,4327.0,0.001]
[1760083767417,0.02888503,4327.5,4327.0,0.001]
[1760083767723,2.31080049,4327.6,4327.0,0.001]
[1760083768110,6.9748,4327.7,4327.0,0.001]
[1760083768315,2.31089553,4327.4,4327.0,0.001]
[1760083768745,2.31081288,4327.5,4327.0,0.001]
[1760083768949,2.3397474,4327.4,4327.0,0.001]
[1760083769144,0.4646857,4327.4,4327.0,0.001]
[1760083769371,2.74676045,4327.3,4327.0,0.001]
[1760083769544,0.4358,4327.3,4327.0,0.001]
[1760083771451,2.74671388,4327.3,4327.0,0.001]
[1760083771947,2.31084683,4327.5,4327.0,0.001]
[1760083772120,0.4358,4327.3,4327.0,0.001]
[1760083774149,6.539,4327.7,4327.0,0.001]
[1760083774358,6.9748,4327.7,4327.0,0.001]
[1760083774538,2.31075274,4327.6,4327.0,0.001]
[1760083774852,2.42595274,4327.6,4327.0,0.001]
[1760083775254,2.31086912,4327.4,4327.0,0.001]
[1760083775452,0.4358,4327.5,4327.0,0.001]
[1760083775748,0.4358,4327.3,4327.0,0.001]
[1760083776525,0.14408437,4327.6,4327.0,0.001]
[1760083776957,2.746603,4327.5,4327.0,0.001]
[1760083777171,2.31094749,4327.3,4327.0,0.001]
[1760083777521,2.33972476,4327.5,4327.0,0.001]
[1760083777720,2.31086223,4327.4,4327.0,0.001]
[1760083777947,2.74666223,4327.4,4327.0,0.001]
[1760083778323,0.14408437,4327.6,4327.0,0.001]
[1760083778886,2.31080627,4327.5,4327.0,0.001]
[1760083779029,0.14408437,4327.6,4327.0,0.001]
[1760083779225,0.1152,4327.6,4327.0,0.34089831]
[1760083779535,0.1152,4327.6,4327.2,2.31093706]
[1760083779740,0.1152,4327.6,4327.3,0.01429631]
[1760083780234,0.1152,4327.6,4327.3,2.63647185]
[1760083780439,0.6,4327.8,4327.3,0.4408]
[1760083780647,0.6,4327.8,4327.5,2.31079076]
[1760083780859,0.6,4327.8,4327.6,0.01429281]
[1760083781148,0.6,4327.8,4327.3,0.1152]
[1760083781546,2.91069491,4327.8,4327.3,0.1152]
[1760083781739,0.6,4327.8,4327.3,0.1152]
[1760083782801,0.6,4327.8,4327.7,2.31069621]
[1760083782950,0.6,4327.8,4327.7,2.86879528]
[1760083783313,0.6,4327.8,4327.7,0.57239055]
[1760083783474,0.6,4327.8,4327.6,0.1152]
[1760083783986,0.6,4327.8,4327.6,2.42593358]
[1760083784994,0.6,4327.8,4327.7,2.31069621]
[1760083785484,0.6,4327.8,4327.7,2.63629621]
[1760083787300,0.002,4327.9,4327.8,2.31064282]
[1760083787591,0.002,4327.9,4327.8,19.1551728]
[1760083787754,0.002,4327.9,4327.8,19.14088266]
[1760083788586,0.002,4327.9,4327.8,18.40216288]
[1760083789466,0.002,4327.9,4327.8,4.55624282]
[1760083789683,0.002,4327.9,4327.8,13.49924282]
[1760083790207,0.002,4327.9,4327.8,15.32283342]
[1760083793418,0.002,4327.9,4327.8,2.31064282]
[1760083793611,0.002,4327.9,4327.8,8.84764282]
[1760083793781,0.002,4327.9,4327.8,9.17324282]
[1760083794313,0.002,4327.9,4327.8,11.09324282]
[1760083796220,0.002,4327.9,4327.8,11.09424282]
[1760083796512,0.002,4327.9,4327.8,12.44625908]
[1760083797623,0.002,4327.9,4327.8,13.19505908]
[1760083799611,0.002,4327.9,4327.8,12.56145908]
[1760083800205,0.002,4327.9,4327.8,5.69885908]
[1760083800425,0.002,4327.9,4327.8,0.1162]
[1760083801007,0.602,4327.9,4327.8,2.42684282]
[1760083801525,0.002,4327.9,4327.8,2.42684282]
[1760083802223,0.002,4327.9,4327.8,8.96284282]
[1760083805035,0.002,4327.9,4327.8,6.6522]
[1760083805339,0.002,4327.9,4327.8,8.96284282]
[1760083806113,0.602,4327.9,4327.8,8.96284282]
[1760083806402,0.602,4327.9,4327.8,10.01930427]
[1760083806602,0.602,4327.9,4327.8,8.96284282]
[1760083806803,0.002,4327.9,4327.8,8.96284282]
[1760083808319,0.002,4327.9,4327.8,9.28844282]
[1760083809000,0.002,4327.9,4327.8,11.20844282]
[1760083812865,0.002,4327.9,4327.8,9.28844282]
[1760083814347,0.002,4327.9,4327.8,10.93877089]
[1760083814657,0.002,4327.9,4327.8,12.85877089]
[1760083815170,0.002,4327.9,4327.8,4.01212807]
[1760083815381,0.002,4327.9,4327.8,2.42684282]
[1760083815537,2.91258943,4327.9,4327.8,0.1162]
[1760083815736,2.91258943,4327.9,4327.8,0.001]
[1760083815737,3.38298943,4327.9,4327.8,0.001]
[1760083815988,3.60408943,4327.9,4327.8,0.001]
[1760083817346,3.63297179,4327.9,4327.8,0.001]
[1760083817871,1.32238236,4327.9,4327.8,0.001]
[1760083818038,1.10128236,4327.9,4327.8,0.001]
[1760083818236,3.38298943,4327.9,4327.8,0.001]
[1760083818432,3.60408943,4327.9,4327.8,0.001]
[1760083819169,5.55297179,4327.9,4327.8,0.001]
[1760083819331,5.52408943,4327.9,4327.8,0.001]
[1760083819769,6.15768943,4327.9,4327.8,0.001]
[1760083819969,6.65574416,4327.9,4327.8,0.001]
[1760083820172,6.65574416,4327.9,4327.3,0.001]
[1760083820173,4.8644564,4327.4,4327.3,0.001]
[1760083820371,14.30351113,4327.4,4327.3,0.001]
[1760083820677,14.88938401,4327.4,4327.3,0.001]
[1760083820892,12.36891113,4327.4,4327.3,0.001]
[1760083821035,5.3348564,4327.4,4327.3,0.001]
[1760083821242,4.7012564,4327.4,4327.3,0.001]
[1760083821540,0.4704,4327.4,4327.3,0.001]
[1760083821747,2.7812564,4327.4,4327.3,0.001]
[1760083822061,2.31073862,4327.7,4327.3,0.001]
[1760083822269,0.4724,4327.9,4327.3,0.001]
[1760083822437,2.31260576,4327.9,4327.3,0.001]
[1760083822837,2.31066659,4327.8,4327.3,0.001]
[1760083823067,2.33958697,4327.7,4327.3,0.001]
[1760083823236,2.31070327,4327.7,4327.3,0.001]
[1760083823849,2.1431,4327.9,4327.3,0.001]
[1760083824067,1.922,4327.9,4327.3,0.001]
[1760083824402,4.23259249,4327.9,4327.3,0.001]
[1760083825083,0.002,4327.9,4327.5,2.3107691]
[1760083825280,0.002,4327.9,4327.6,2.32504189]
[1760083825496,0.002,4327.9,4327.6,0.01429231]
[1760083825695,0.6,4327.7,4327.6,0.01429231]
[1760083826264,0.6,4327.7,4327.5,0.01429281]
[1760083826568,0.6,4327.7,4327.6,2.6373496]
[1760083827826,0.6,4327.7,4327.6,4.57164241]
[1760083828588,0.002,4327.9,4327.8,2.31064282]
[1760083828771,0.002,4327.9,4327.8,2.32493296]
[1760083828969,0.002,4327.9,4327.8,4.55724282]
[1760083829276,0.002,4327.9,4327.8,6.13611307]
[1760083830268,0.002,4327.9,4327.8,6.25131307]
[1760083832599,0.002,4327.9,4327.2,12.026]
[1760083832600,0.002,4327.8,4327.0,2.3120331]
[1760083832799,0.002,4327.8,4327.5,2.31080162]
[1760083833000,0.002,4327.8,4327.7,2.31069621]
[1760083833187,0.002,4327.8,4327.7,8.84669621]
[1760083833391,0.002,4327.8,4327.7,12.24313312]
[1760083834507,0.002,4328.3,4328.2,2.31042927]
[1760083834690,0.002,4328.3,4328.2,13.18571407]
[1760083835004,0.002,4328.3,4328.2,13.49802927]
[1760083842517,0.002,4328.3,4328.2,13.61322927]
[1760083842701,0.002,4328.3,4328.2,15.20560241]
[1760083843294,0.002,4328.3,4328.2,4.11257314]
[1760083843494,0.002,4328.3,4328.2,4.602]
[1760083843908,0.602,4328.3,4328.2,4.602]
[1760083844105,0.602,4328.3,4328.2,6.91242927]
[1760083844308,0.602,4328.3,4328.2,7.23902927]
[1760083844611,0.602,4328.3,4328.2,9.15902927]
[1760083844923,0.002,4328.3,4328.2,11.41079972]
[1760083845715,0.002,4328.3,4328.2,24.23879172]
[1760083846224,0.002,4328.3,4328.2,6.48219972]
[1760083846520,0.002,4328.3,4328.2,13.49602927]
[1760083853439,0.002,4328.3,4328.2,13.61122927]
[1760083861359,0.002,4328.3,4328.2,26.43922127]
[1760083861565,0.002,4328.3,4328.2,17.77581542]
[1760083862876,0.002,4328.3,4328.2,15.37081542]
[1760083863083,0.002,4328.3,4328.0,2.31052362]
[1760083863231,0.002,4328.3,4327.8,0.001]
[1760083863232,0.4584,4328.2,4327.8,0.001]
[1760083863430,0.2248,4327.9,4327.8,0.001]
[1760083863838,0.6832,4327.9,4327.8,0.001]
[1760083864241,0.71208236,4327.9,4327.8,0.001]
[1760083865497,0.002,4328.3,4328.2,2.31042927]
[1760083865681,0.002,4328.3,4328.2,6.24542927]
[1760083866085,0.602,4328.3,4328.2,6.24542927]
[1760083866892,0.602,4328.3,4328.2,3.935]
[1760083867092,0.602,4328.3,4328.2,6.24542927]
[1760083867762,0.602,4328.3,4328.2,3.935]
[1760083868305,0.002,4328.3,4328.2,6.24542927]
[1760083868863,0.002,4328.3,4328.2,6.57202927]
[1760083870422,0.002,4328.3,4328.2,9.38028532]
[1760083871417,0.002,4328.3,4328.2,10.01388532]
[1760083871991,0.002,4328.4,4328.3,4.86397589]
[1760083871992,1e-08,4328.4,4328.3,4.86397589]
[1760083872189,0.012,4328.9,4328.7,4.8637624]
[1760083872426,0.012,4328.9,4328.7,26.63718764]
[1760083872631,0.012,4328.9,4328.7,29.21555809]
[1760083872994,2.76703887,4331.6,4329.4,2.94338888]
[1760083873213,0.1152,4331.1,4329.4,24.36228291]
[1760083873413,0.4584,4330.7,4329.4,4.22978888]
[1760083873623,2.30894387,4331.0,4329.4,8.84478888]
[1760083873822,0.03886236,4330.9,4329.4,9.17138888]
[1760083874027,0.4584,4330.7,4329.4,8.84478888]
[1760083874529,2.3380251,4330.6,4329.4,8.84478888]
[1760083874747,0.02886436,4330.6,4329.4,8.84478888]
[1760083874901,0.4584,4330.5,4329.4,8.84478888]
[1760083875229,0.602,4329.5,4329.4,8.84478888]
[1760083875397,0.002,4329.5,4329.4,8.84478888]
[1760083876029,0.002,4329.5,4329.4,9.17138888]
[1760083881310,0.002,4329.5,4329.4,10.55990918]
[1760083881663,0.002,4329.5,4329.4,13.11350918]
[1760083881814,0.01,4330.9,4329.4,13.11350918]
[1760083881815,1e-08,4329.6,4329.5,15.77776077]
[1760083882015,1e-08,4329.6,4329.5,16.10436077]
[1760083882317,1e-08,4329.6,4329.5,18.35613122]
[1760083883419,1e-08,4329.6,4329.5,18.47133122]
[1760083884961,0.01,4330.9,4329.9,2.30952215]
[1760083885258,0.01,4330.9,4329.9,10.76252215]
[1760083885461,0.01,4330.9,4329.9,11.08912215]
[1760083885674,0.01,4330.9,4329.9,12.77516194]
[1760083886371,0.01,4330.9,4329.9,6.24216194]
[1760083886729,0.01,4330.9,4329.9,15.17916194]
[1760083888333,0.01,4330.9,4329.9,11.20432215]
[1760083888542,0.01,4330.9,4329.9,13.60832215]
[1760083888744,0.01,4330.9,4329.9,11.20332215]
[1760083889062,0.01,4330.9,4329.9,13.60732215]
[1760083889961,0.002,4330.5,4329.9,13.60732215]
[1760083890433,0.002,4330.5,4329.9,13.28072215]
[1760083891540,0.002,4330.5,4329.9,0.1152]
[1760083891782,0.4421,4330.4,4329.9,0.1152]
[1760083892061,0.002,4330.5,4329.9,0.1152]
[1760083892062,0.1172,4330.5,4329.9,6.6472]
[1760083892436,0.14606502,4330.5,4329.9,6.6472]
[1760083892636,2.45526891,4330.5,4329.9,6.6472]
[1760083892967,0.14606502,4330.5,4329.9,8.95672215]
[1760083893865,0.14606502,4330.5,4329.9,6.6472]
[1760083894365,0.4421,4330.4,4329.9,6.6472]
[1760083894531,0.47096569,4330.4,4329.9,6.6472]
[1760083894863,0.47096569,4330.4,4329.9,8.95672215]
[1760083895172,0.1172,4330.5,4329.9,8.95672215]
[1760083895734,0.602,4330.0,4329.9,8.95672215]
[1760083895975,0.602,4330.0,4329.9,6.6472]
[1760083896963,1.0441,4330.0,4329.9,6.6472]
[1760083897356,1.0441,4330.0,4329.3,0.001]
[1760083897559,2.3095755,4329.8,4329.3,0.001]
[1760083897869,0.3437,4329.9,4329.3,0.001]
[1760083897870,2.30978888,4329.4,4329.3,0.001]
[1760083898035,2.33866124,4329.4,4329.3,0.001]
[1760083898346,4.70076124,4329.4,4329.3,0.001]
[1760083898669,4.67188888,4329.4,4329.3,0.001]
[1760083898836,4.70076124,4329.4,4329.3,0.001]
[1760083899689,2.30959223,4329.8,4329.3,0.001]
[1760083899988,2.30969254,4329.6,4329.3,0.001]
[1760083900143,2.30974185,4329.5,4329.3,0.001]
[1760083900798,0.02887236,4329.4,4329.3,0.001]
[1760083901086,0.4421,4329.5,4329.3,0.001]
[1760083901448,0.02887236,4329.4,4329.3,0.001]
[1760083902073,0.02887102,4329.6,4329.3,0.001]
[1760083902849,0.602,4330.0,4329.4,2.30974367]
[1760083903082,0.602,4330.0,4329.5,0.01426595]
[1760083903748,0.602,4330.0,4329.6,2.30967506]
[1760083904149,0.602,4330.0,4329.5,2.30973056]
[1760083904352,0.602,4330.0,4329.4,2.32404101]
[1760083904553,0.602,4330.0,4329.4,0.01426595]
[1760083904803,0.602,4330.0,4329.5,2.30973553]
[1760083904951,0.602,4330.0,4329.6,2.3096763]
[1760083905297,0.002,4330.0,4329.7,0.01426429]
[1760083905464,0.002,4330.0,4329.7,2.32388774]
[1760083905783,0.002,4330.0,4329.4,2.30978888]
[1760083905973,0.002,4330.0,4329.5,2.309731]
[1760083906559,0.002,4330.0,4329.4,2.30978888]
[1760083906785,0.6,4329.6,4329.5,2.30973553]
[1760083907293,0.6,4329.6,4329.5,2.31073553]
[1760083907789,0.6,4329.6,4329.5,2.63733553]
[1760083909065,0.6,4329.6,4329.5,2.31073553]
[1760083909781,0.6,4329.6,4329.5,2.42593553]
[1760083909982,0.6,4329.6,4329.5,3.24993007]
[1760083910190,0.002,4330.0,4329.6,2.3096531]
[1760083910394,0.002,4330.0,4329.6,2.32391772]
[1760083911313,0.002,4330.0,4329.5,2.42593013]
[1760083911681,0.002,4330.0,4329.5,0.1162]
[1760083911881,0.002,4330.0,4329.6,2.30963263]
[1760083912381,0.002,4330.0,4329.7,2.30962168]
[1760083913109,0.002,4330.0,4329.5,0.1162]
[1760083913110,0.002,4330.0,4329.9,2.30952215]
[1760083913310,0.002,4330.0,4329.9,2.57456071]
[1760083913477,0.002,4330.0,4329.9,2.90116071]
[1760083913683,0.002,4330.0,4329.9,4.82116071]
[1760083916181,0.002,4330.0,4329.9,4.93800475]
[1760083916913,0.002,4330.0,4329.9,5.57160475]
[1760083920627,0.002,4330.0,4329.9,5.45476071]
[1760083922519,0.002,4330.0,4329.9,4.82116071]
[1760083922719,0.002,4330.0,4329.8,0.1152]
[1760083922918,0.002,4330.0,4329.9,8.84152215]
[1760083923345,0.002,4330.0,4329.9,9.16812215]
[1760083924113,0.002,4330.0,4329.9,11.08812215]
[1760083925424,0.002,4330.0,4329.9,10.76152215]
[1760083925629,0.002,4330.0,4329.9,11.08812215]
[1760083927446,0.002,4330.0,4329.9,12.45797399]
[1760083930948,0.002,4330.0,4329.9,14.86097399]
[1760083932632,0.002,4330.0,4329.8,2.42476714]
[1760083932862,0.002,4330.0,4329.8,0.1152]
[1760083933161,0.002,4330.0,4329.8,2.164]
[1760083933162,0.47,4329.9,4329.8,2.164]
[1760083933866,0.47,4329.9,4329.6,0.001]
[1760083934068,0.49886969,4329.8,4329.6,0.001]
[1760083934685,0.02886969,4329.8,4329.6,0.001]
[1760083934891,0.47,4329.7,4329.6,0.001]
[1760083935036,0.02886969,4329.8,4329.6,0.001]
[1760083935037,0.3318,4329.9,4329.6,0.001]
[1760083935439,0.6,4329.7,4329.6,0.001]
[1760083936067,1.09887036,4329.7,4329.6,0.001]
[1760083936270,3.4084992,4329.7,4329.6,0.001]
[1760083937274,1.09887036,4329.7,4329.6,0.001]
[1760083937972,3.4084992,4329.7,4329.6,0.001]
[1760083939186,0.6,4329.7,4329.6,0.001]
[1760083939388,2.31147664,4330.0,4329.6,0.001]
[1760083939389,2.30952215,4329.9,4329.6,0.001]
[1760083939688,2.30958662,4329.8,4329.6,0.001]
[1760083939991,2.77958662,4329.8,4329.6,0.001]
[1760083940187,2.30958662,4329.8,4329.6,0.001]
[1760083940395,0.47,4329.7,4329.6,0.001]
[1760083941158,0.02886902,4329.9,4329.6,0.001]
[1760083941457,0.1172,4330.0,4329.6,0.001]
[1760083941789,0.47,4329.9,4329.6,0.001]
[1760083941990,2.30962884,4329.7,4329.6,0.001]
[1760083942474,4.7284992,4329.7,4329.6,0.001]
[1760083942643,4.69962884,4329.7,4329.6,0.001]
[1760083944664,2.77962884,4329.7,4329.6,0.001]
[1760083944977,2.8084992,4329.7,4329.6,0.001]
[1760083945877,3.4084992,4329.7,4329.6,0.001]
[1760083951562,4.15671822,4329.7,4329.6,0.001]
[1760083951780,4.15671822,4329.7,4329.3,1e-08]
[1760083951781,4.86338888,4329.4,4329.3,1e-08]
[1760083952093,13.80038888,4329.4,4329.3,1e-08]
[1760083952291,14.22838888,4329.4,4329.3,1e-08]